bitfinex/quotes_SOLUSD_20250811
["timestamp","ask_amount","ask_price","bid_price","bid_amount"]
[1754871814523,0.1,182.95,182.94,57.89469135]
[1754871815022,0.1,182.95,182.94,59.41248866]
[1754871815328,0.1,182.95,182.94,63.36096444]
[1754871815823,0.45,182.95,182.88,0.69]
[1754871816023,5.9159743,182.95,182.91,15.10621557]
[1754871816196,0.35,182.94,182.92,38.86]
[1754871816603,4.29847578,182.93,182.91,26.0]
[1754871816807,8.37218186,182.92,182.87,0.06]
[1754871817010,8.02218186,182.91,182.88,38.84]
[1754871817322,3.94847578,182.89,182.87,0.06]
[1754871817624,8.0250524,182.88,182.87,0.06]
[1754871817822,8.3750524,182.88,182.87,0.06]
[1754871818024,13.84311889,182.88,182.87,0.06]
[1754871818525,9.89464311,182.88,182.87,0.06]
[1754871818695,13.84311889,182.88,182.87,0.06]
[1754871819300,0.55375683,182.9,182.87,0.06]
[1754871819301,3.94847578,182.89,182.87,0.06]
[1754871820226,3.94847578,182.9,182.87,0.06]
[1754871820410,3.94847578,182.89,182.87,0.06]
[1754871820814,3.94847578,182.88,182.87,0.06]
[1754871821213,8.37636654,182.88,182.87,0.06]
[1754871821806,4.42789076,182.88,182.87,0.06]
[1754871822022,4.07789076,182.88,182.87,0.06]
[1754871822229,0.90375683,182.9,182.87,0.06]
[1754871822406,8.02607007,182.89,182.87,0.06]
[1754871822726,3.94847578,182.89,182.87,0.06]
[1754871823530,0.90375683,182.93,182.87,0.06]
[1754871823835,3.94847578,182.91,182.87,0.75]
[1754871824204,3.94847578,182.91,182.88,5.46806649]
[1754871824620,3.94847578,182.92,182.88,6.15806649]
[1754871825913,0.1,182.95,182.88,6.15806649]
[1754871825914,3.94847578,182.94,182.89,0.69]
[1754871826121,4.04847578,182.95,182.91,5.46716964]
[1754871826314,4.04847578,182.95,182.91,6.15716964]
[1754871826510,3.94847578,182.92,182.89,38.86]
[1754871826716,0.35,182.91,182.89,44.32766143]
[1754871826915,3.94847578,182.91,182.89,44.32766143]
[1754871827610,0.1,182.95,182.89,44.32766143]
[1754871827611,1.00375683,182.95,182.89,44.32766143]
[1754871827810,3.94847578,182.93,182.89,44.32766143]
[1754871828008,3.94847578,182.9,182.88,5.46801819]
[1754871828231,3.94847578,182.91,182.88,5.46801819]
[1754871829335,0.90375683,182.94,182.88,5.46801819]
[1754871829525,3.94847578,182.92,182.89,0.69]
[1754871830442,0.90375683,182.94,182.89,0.69]
[1754871830443,3.94847578,182.93,182.9,0.69]
[1754871830614,3.94847578,182.93,182.89,5.46773014]
[1754871830815,3.94847578,182.92,182.89,6.15773014]
[1754871831014,1.00375683,182.95,182.89,6.15773014]
[1754871831015,3.94847578,182.93,182.89,6.15773014]
[1754871831811,3.94847578,182.93,182.89,5.46773014]
[1754871832015,3.94847578,182.93,182.87,68.86847578]
[1754871832016,0.1,182.95,182.9,10.10574656]
[1754871832217,0.1,182.95,182.93,3.94847578]
[1754871832525,0.1,182.95,182.91,4.63847578]
[1754871832725,0.1,182.95,182.92,0.69]
[1754871833327,4.04847578,182.95,182.9,71.03727078]
[1754871833521,3.94847578,182.92,182.9,64.88]
[1754871833825,3.94847578,182.92,182.9,38.88]
[1754871834215,3.94847578,182.93,182.9,38.88]
[1754871834420,3.94847578,182.93,182.9,44.34746765]
[1754871834617,3.94847578,182.93,182.88,0.69]
[1754871834618,3.94847578,182.92,182.88,0.69]
[1754871834837,3.94847578,182.92,182.87,26.06]
[1754871834838,0.90375683,182.91,182.87,0.06]
[1754871835048,3.94847578,182.88,182.87,0.06]
[1754871835541,0.55375683,182.92,182.87,0.75]
[1754871835747,3.94847578,182.91,182.87,0.06]
[1754871836050,3.94847578,182.91,182.88,0.69]
[1754871836220,0.55375683,182.92,182.88,0.69]
[1754871836424,3.94847578,182.92,182.89,0.69]
[1754871837772,3.94847578,182.9,182.87,0.06]
[1754871838423,3.94847578,182.9,182.87,0.75]
[1754871839347,3.94847578,182.9,182.87,0.06]
[1754871840224,5.46725811,182.91,182.87,0.06]
[1754871840420,6.05029257,182.94,182.88,0.71]
[1754871840647,3.94847578,182.92,182.88,0.71]
[1754871840830,6.05029257,182.94,182.88,0.71]
[1754871840831,3.94847578,182.91,182.88,0.71]
[1754871841029,3.94847578,182.92,182.87,38.92]
[1754871841231,3.94847578,182.92,182.89,0.71]
[1754871841550,3.94847578,182.92,182.88,0.71]
[1754871841756,3.94847578,182.92,182.89,0.71]
[1754871841941,3.94847578,182.92,182.87,45.09824158]
[1754871842142,3.94847578,182.92,182.88,0.71]
[1754871842351,0.03,182.94,182.91,3.94847578]
[1754871842656,0.03,182.94,182.92,0.71]
[1754871842962,0.03,182.94,182.91,0.71]
[1754871843253,3.94847578,182.93,182.9,38.86]
[1754871843746,3.94847578,182.92,182.87,54.75621557]
[1754871844629,3.94847578,182.92,182.88,0.71]
[1754871845522,3.94847578,182.91,182.87,38.94]
[1754871845724,3.94847578,182.91,182.87,39.65]
[1754871845933,3.94847578,182.91,182.87,38.94]
[1754871846126,3.94847578,182.91,182.88,0.71]
[1754871846652,3.94847578,182.91,182.87,38.94]
[1754871847027,3.94847578,182.91,182.87,39.65]
[1754871847650,9.41568512,182.91,182.87,39.65]
[1754871848245,3.94847578,182.9,182.87,39.65]
[1754871848428,3.94847578,182.9,182.87,0.77]
[1754871848950,3.94847578,182.9,182.87,0.06]
[1754871849150,3.94847578,182.89,182.87,0.06]
[1754871849654,3.94847578,182.9,182.87,0.06]
[1754871849825,0.58375683,182.94,182.88,0.71]
[1754871850021,6.05006939,182.94,182.88,0.71]
[1754871850264,9.99854517,182.94,182.88,43.51847578]
[1754871850449,0.03,182.94,182.89,4.65847578]
[1754871850749,0.03,182.94,182.9,0.71]
[1754871850750,8.05565736,182.94,182.9,0.71]
[1754871850956,3.97847578,182.94,182.9,0.71]
[1754871851253,0.03,182.94,182.92,3.94847578]
[1754871851561,0.03,182.94,182.93,0.71]
[1754871852439,0.03,182.94,182.93,25.23126326]
[1754871852655,0.03,182.94,182.93,0.71]
[1754871852828,0.03,182.94,182.91,45.07710622]
[1754871853167,0.03,182.94,182.92,0.71]
[1754871853458,0.03,182.94,182.92,4.65847578]
[1754871853635,0.03,182.94,182.93,0.71]
[1754871854561,0.03,182.94,182.93,10.12504769]
[1754871854744,0.03,182.94,182.93,19.76469135]
[1754871855833,0.03,182.94,182.93,0.71]
[1754871857546,0.03,182.94,182.93,4.65847578]
[1754871857959,0.03,182.94,182.88,13.66985059]
[1754871857960,0.38,182.94,182.84,2.189202]
[1754871858143,3.94847578,182.91,182.86,0.71]
[1754871858345,0.58375683,182.94,182.88,30.65847578]
[1754871858576,0.58375683,182.94,182.9,26.0]
[1754871858577,0.03,182.94,182.9,26.0]
[1754871858748,0.03,182.94,182.91,40.53]
[1754871859073,0.03,182.94,182.93,3.94847578]
[1754871859375,0.03,182.94,182.93,19.05469135]
[1754871859678,0.03,182.94,182.93,45.76469135]
[1754871860051,0.03,182.94,182.93,46.31134854]
[1754871860252,0.03,182.94,182.93,20.31134854]
[1754871860464,0.03,182.94,182.93,24.25982432]
[1754871860665,0.03,182.94,182.93,29.72639623]
[1754871861081,0.03,182.94,182.88,9.41654227]
[1754871861251,0.03,182.94,182.92,0.71]
[1754871861446,0.03,182.94,182.93,0.06]
[1754871861650,0.03,182.94,182.93,0.77]
[1754871862077,0.03,182.94,182.93,59.72469135]
[1754871862284,0.03,182.94,182.93,55.04621557]
[1754871863361,0.03,182.94,182.93,65.17126326]
[1754871864182,0.03,182.94,182.93,55.75621557]
[1754871864879,0.03,182.94,182.93,61.22278748]
[1754871865279,0.03,182.94,182.93,65.17126326]
[1754871866060,0.03,182.94,182.93,61.22278748]
[1754871866266,0.03,182.94,182.93,65.17126326]
[1754871866699,0.03,182.94,182.93,65.71792045]
[1754871866975,0.03,182.94,182.93,69.66639623]
[1754871867378,0.1,182.95,182.94,15.10621557]
[1754871867559,0.03,182.96,182.95,19.05469135]
[1754871867754,0.03,182.96,182.95,59.40128878]
[1754871867960,0.03,182.98,182.96,15.10621557]
[1754871868162,0.03,182.98,182.97,64.86660586]
[1754871868364,0.55375683,183.13,182.98,15.10621557]
[1754871868580,4.29847578,183.09,182.98,19.76469135]
[1754871868872,0.35,183.07,182.98,19.76469135]
[1754871869079,9.40995176,183.11,182.98,19.76469135]
[1754871869281,0.35,183.11,183.03,15.10621557]
[1754871869577,0.35,183.11,183.04,43.84847578]
[1754871869578,4.29847578,183.09,183.04,43.84847578]
[1754871869768,3.94847578,183.1,183.04,43.84847578]
[1754871870079,4.29847578,183.11,183.06,3.94847578]
[1754871870380,0.35,183.11,183.08,6.20913907]
[1754871870581,6.7628959,183.14,183.08,6.20913907]
[1754871870582,0.55375683,183.14,183.09,0.72]
[1754871870892,0.35,183.14,183.08,40.88]
[1754871871179,0.35,183.13,183.08,46.36913907]
[1754871871347,0.35,183.12,183.06,15.10621557]
[1754871871551,6.20913907,183.11,183.07,40.4]
[1754871871756,6.20913907,183.1,183.04,6.92913907]
[1754871871984,0.35,183.1,183.05,15.10621557]
[1754871872165,0.35,183.12,183.05,27.49826493]
[1754871872372,0.55375683,183.13,183.07,6.20913907]
[1754871872569,0.35,183.15,183.1,6.20913907]
[1754871872767,6.20913907,183.11,183.06,6.20913907]
[1754871873076,0.35,183.11,183.06,55.68621557]
[1754871873252,0.35,183.13,183.06,62.61535464]
[1754871873457,0.35,183.13,183.06,56.40621557]
[1754871873682,0.35,183.13,183.06,62.61535464]
[1754871874058,6.20913907,183.11,183.06,62.61535464]
[1754871874454,5.81065423,183.13,182.97,27.32391424]
[1754871874455,6.20913907,183.07,182.97,27.32391424]
[1754871874764,6.20913907,183.07,183.02,41.10621557]
[1754871875080,6.20913907,183.07,183.04,15.10621557]
[1754871875471,6.20913907,183.07,183.03,41.34]
[1754871875472,0.55375683,183.1,183.03,40.62]
[1754871875672,6.20913907,183.06,183.02,26.0]
[1754871875983,6.20913907,183.04,183.01,40.6]
[1754871876289,6.20913907,183.02,183.01,40.6]
[1754871876460,5.81308629,183.05,183.01,26.0]
[1754871876781,6.20913907,183.03,182.99,0.72]
[1754871876985,5.46308629,183.05,182.98,40.58]
[1754871877169,6.20913907,183.01,182.98,40.58]
[1754871877485,6.20913907,183.01,182.97,0.72]
[1754871877662,6.20913907,183.0,182.95,15.10621557]
[1754871877991,0.35,183.01,182.95,15.82621557]
[1754871877992,6.20913907,182.99,182.95,15.82621557]
[1754871878582,5.46435993,183.01,182.96,0.72]
[1754871878783,6.20913907,183.0,182.95,21.31535464]
[1754871879084,6.20913907,182.99,182.95,15.10621557]
[1754871879280,6.20913907,182.98,182.94,41.3]
[1754871879464,6.20913907,182.95,182.93,0.06]
[1754871879674,0.35,182.97,182.93,0.06]
[1754871879867,6.20913907,182.95,182.93,0.06]
[1754871880073,6.20913907,182.94,182.93,0.06]
[1754871880578,11.67541216,182.94,182.93,0.06]
[1754871880896,12.02541216,182.94,182.93,0.06]
[1754871882593,16.08397379,182.94,182.89,0.06]
[1754871882829,15.10621557,182.91,182.87,0.06]
[1754871883105,15.10621557,182.91,182.85,0.06]
[1754871883106,6.20913907,182.88,182.85,0.06]
[1754871883263,6.20913907,182.86,182.85,0.06]
[1754871883791,10.55726273,182.86,182.85,0.06]
[1754871884393,16.02592728,182.86,182.85,0.06]
[1754871885323,26.0,182.84,182.83,0.06]
[1754871885600,26.0,182.84,182.81,0.06]
[1754871885601,15.10621557,182.83,182.81,0.06]
[1754871885770,77.53677549,182.82,182.76,0.02]
[1754871885971,6.20913907,182.77,182.76,0.02]
[1754871886494,11.97049651,182.77,182.76,0.02]
[1754871886726,12.23425334,182.77,182.76,0.02]
[1754871887739,11.68049651,182.77,182.76,0.02]
[1754871887896,11.97049651,182.77,182.76,0.02]
[1754871888097,12.52425334,182.77,182.76,0.02]
[1754871888836,16.56595823,182.77,182.76,0.02]
[1754871889736,16.56160982,182.77,182.76,0.02]
[1754871889900,12.52425334,182.77,182.76,0.02]
[1754871890101,6.02511427,182.77,182.76,0.02]
[1754871890300,11.68049651,182.77,182.76,0.02]
[1754871890532,12.23425334,182.77,182.76,0.02]
[1754871890900,6.7628959,182.77,182.76,0.02]
[1754871891103,12.23425334,182.77,182.76,0.02]
[1754871892607,53.18425334,182.77,182.76,0.02]
[1754871894203,52.89425334,182.77,182.76,0.02]
[1754871894933,77.4228959,182.77,182.76,0.02]
[1754871895432,41.19375683,182.77,182.76,0.74]
[1754871895606,47.4028959,182.77,182.76,0.74]
[1754871896115,2.191961,182.79,182.76,0.74]
[1754871896116,2.74571783,182.79,182.76,0.74]
[1754871896429,15.39621557,182.85,182.76,0.74]
[1754871896430,46.84913907,182.8,182.77,0.72]
[1754871896630,6.20913907,182.78,182.76,0.02]
[1754871896843,6.20913907,182.77,182.76,0.02]
[1754871897619,0.55375683,182.79,182.76,0.74]
[1754871897841,6.20913907,182.78,182.77,0.72]
[1754871898829,6.20913907,182.78,182.76,0.02]
[1754871899014,6.7628959,182.77,182.76,0.02]
[1754871899334,6.7628959,182.77,182.76,0.74]
[1754871899732,0.55375683,182.77,182.76,0.02]
[1754871899928,6.20913907,182.77,182.76,0.68]
[1754871900427,40.68,182.8,182.76,0.68]
[1754871900735,6.20913907,182.79,182.77,0.66]
[1754871901031,6.20913907,182.79,182.78,0.66]
[1754871901215,47.4428959,182.8,182.78,0.66]
[1754871901547,46.88913907,182.8,182.79,0.66]
[1754871901712,40.68,182.8,182.79,0.66]
[1754871902032,40.68,182.8,182.79,6.13075879]
[1754871902333,40.68,182.8,182.76,0.68]
[1754871902334,6.20913907,182.8,182.76,0.68]
[1754871902535,0.55375683,182.8,182.77,0.66]
[1754871902840,6.20913907,182.81,182.77,0.66]
[1754871903133,6.20913907,182.8,182.78,0.66]
[1754871903434,6.20913907,182.81,182.79,0.66]
[1754871903656,41.35375683,182.83,182.76,11.70076603]
[1754871903657,6.20913907,182.8,182.76,0.68]
[1754871903812,0.55375683,182.82,182.77,0.66]
[1754871904012,6.20913907,182.82,182.77,0.66]
[1754871904431,41.35375683,182.83,182.78,6.20913907]
[1754871904432,40.8,182.83,182.78,6.20913907]
[1754871904637,40.8,182.83,182.79,0.66]
[1754871904950,0.03,182.81,182.8,0.66]
[1754871905952,40.9,182.86,182.81,15.10621557]
[1754871906249,57.308904,182.89,182.82,6.86913907]
[1754871906416,6.20913907,182.86,182.83,0.66]
[1754871906747,6.20913907,182.86,182.84,0.66]
[1754871906929,0.03,182.87,182.85,0.66]
[1754871907129,6.23913907,182.87,182.85,0.66]
[1754871907329,0.03,182.87,182.86,0.66]
[1754871908346,6.55913907,182.87,182.78,0.66]
[1754871908551,0.55375683,182.86,182.8,26.66]
[1754871908843,6.20913907,182.84,182.8,26.0]
[1754871909046,0.35,182.87,182.8,26.0]
[1754871909047,0.58375683,182.87,182.81,6.86913907]
[1754871909337,0.58375683,182.87,182.8,26.0]
[1754871909338,6.20913907,182.86,182.82,0.66]
[1754871909539,6.20913907,182.86,182.83,0.66]
[1754871909739,6.23913907,182.87,182.83,0.66]
[1754871909922,0.03,182.87,182.84,0.66]
[1754871910114,6.23913907,182.87,182.85,0.66]
[1754871910315,0.03,182.87,182.83,5.46954358]
[1754871910533,0.03,182.87,182.84,0.66]
[1754871911046,6.23913907,182.87,182.85,0.66]
[1754871911416,6.20913907,182.86,182.83,0.66]
[1754871911627,6.20913907,182.85,182.82,15.10621557]
[1754871911844,6.20913907,182.86,182.84,0.66]
[1754871912152,6.23913907,182.87,182.84,0.66]
[1754871912358,0.03,182.87,182.85,0.66]
[1754871912516,6.20913907,182.86,182.84,0.66]
[1754871912718,0.03,182.87,182.84,0.66]
[1754871912925,6.20913907,182.86,182.82,5.46986106]
[1754871913128,6.20913907,182.86,182.85,0.66]
[1754871913527,0.03,182.87,182.85,0.66]
[1754871913729,6.23913907,182.87,182.85,0.66]
[1754871914832,0.03,182.87,182.85,0.66]
[1754871915155,6.23913907,182.87,182.85,0.66]
[1754871915650,0.03,182.87,182.85,0.66]
[1754871915820,6.23913907,182.87,182.85,0.66]
[1754871916020,6.23913907,182.87,182.86,0.66]
[1754871916631,0.03,182.87,182.86,0.66]
[1754871918152,0.03,182.87,182.83,0.66]
[1754871918443,6.23913907,182.87,182.85,0.66]
[1754871919251,0.03,182.87,182.86,0.66]
[1754871919448,6.23913907,182.87,182.86,0.66]
[1754871919654,6.23913907,182.87,182.84,0.66]
[1754871920233,0.03,182.87,182.85,0.66]
[1754871920734,0.03,182.87,182.86,0.66]
[1754871922045,0.03,182.87,182.86,47.97535464]
[1754871922251,0.03,182.87,182.86,47.23488012]
[1754871922434,0.03,182.87,182.86,52.78401919]
[1754871922639,0.03,182.87,182.86,53.44401919]
[1754871922945,0.03,182.87,182.86,47.23488012]
[1754871923545,0.03,182.87,182.86,53.44401919]
[1754871923947,0.03,182.87,182.86,47.23488012]
[1754871924140,0.03,182.87,182.86,53.44401919]
[1754871924456,0.03,182.87,182.86,47.23488012]
[1754871924755,0.03,182.87,182.86,53.44401919]
[1754871926054,0.03,182.87,182.86,47.23488012]
[1754871927354,0.03,182.87,182.86,53.44401919]
[1754871928355,0.03,182.87,182.86,47.23488012]
[1754871929260,0.03,182.87,182.86,53.44401919]
[1754871931046,0.03,182.87,182.86,47.23488012]
[1754871932152,0.03,182.87,182.85,41.1]
[1754871932356,6.20913907,182.86,182.81,0.06]
[1754871932666,6.20913907,182.85,182.82,41.16]
[1754871933037,0.35,182.87,182.82,46.6297023]
[1754871933347,6.20913907,182.86,182.82,46.6297023]
[1754871933549,6.23913907,182.87,182.83,0.7]
[1754871933858,6.20913907,182.86,182.82,46.6297023]
[1754871934158,6.20913907,182.86,182.82,47.3297023]
[1754871934340,6.20913907,182.85,182.82,47.3297023]
[1754871934748,0.03,182.87,182.82,47.3297023]
[1754871934749,6.20913907,182.86,182.82,47.3297023]
[1754871935248,0.03,182.87,182.83,15.80621557]
[1754871935740,0.03,182.87,182.84,0.7]
[1754871936146,0.03,182.87,182.85,41.84]
[1754871936554,0.03,182.87,182.85,41.14]
[1754871936745,0.03,182.87,182.86,0.7]
[1754871937465,0.03,182.87,182.86,27.48401919]
[1754871937641,0.03,182.87,182.86,53.48401919]
[1754871937844,0.03,182.87,182.86,26.0]
[1754871938059,0.03,182.87,182.85,41.14]
[1754871938254,6.23913907,182.87,182.85,41.14]
[1754871938451,0.03,182.87,182.85,41.14]
[1754871938971,0.03,182.87,182.85,47.30893975]
[1754871939143,0.03,182.87,182.85,41.84]
[1754871939469,0.03,182.87,182.85,46.60893115]
[1754871939682,0.03,182.87,182.86,0.7]
[1754871940669,6.23913907,182.87,182.84,15.10621557]
[1754871940970,0.35,182.87,182.83,41.06]
[1754871941551,5.81853742,182.87,182.83,41.06]
[1754871941869,4.39585445,182.86,182.83,41.06]
[1754871942068,0.32,182.86,182.83,41.06]
[1754871942243,5.49853742,182.87,182.83,41.06]
[1754871942440,4.07812364,182.86,182.83,41.06]
[1754871942879,6.20913907,182.84,182.81,41.08]
[1754871943072,6.20913907,182.83,182.81,41.08]
[1754871943370,0.03,182.87,182.82,15.80621557]
[1754871943553,6.23913907,182.87,182.83,46.48942081]
[1754871943751,6.23913907,182.87,182.84,0.7]
[1754871944282,6.20913907,182.85,182.81,6.2301338]
[1754871944468,4.08261259,182.86,182.81,6.2301338]
[1754871944469,0.32,182.86,182.81,46.5501338]
[1754871944782,4.08264169,182.85,182.82,22.01535464]
[1754871944949,0.03,182.87,182.83,0.7]
[1754871945270,4.11241979,182.87,182.84,41.02]
[1754871945662,4.11241979,182.87,182.85,5.46896363]
[1754871945847,10.32155886,182.87,182.84,47.18918844]
[1754871946155,6.23913907,182.87,182.84,47.18918844]
[1754871946664,0.03,182.87,182.85,0.7]
[1754871946981,4.11387511,182.87,182.86,0.7]
[1754871947442,4.11387511,182.87,182.86,41.72]
[1754871947443,0.03,182.87,182.86,41.72]
[1754871947644,0.03,182.87,182.86,61.59488012]
[1754871947844,0.03,182.87,182.86,68.50401919]
[1754871948452,0.03,182.87,182.86,94.50401919]
[1754871949648,1e-08,182.87,182.86,69.05088564]
[1754871950051,0.03,182.89,182.88,6.20913907]
[1754871950052,1e-08,182.89,182.88,6.20913907]
[1754871950267,1e-08,182.89,182.88,47.12913907]
[1754871950471,1e-08,182.89,182.88,62.93535464]
[1754871951252,1e-08,182.89,182.88,68.95022777]
[1754871951477,1e-08,182.89,182.88,68.40342113]
[1754871952265,1e-08,182.89,182.88,62.19428206]
[1754871952466,1e-08,182.89,182.88,68.40342113]
[1754871952783,1e-08,182.89,182.88,62.19428206]
[1754871953077,1e-08,182.89,182.88,62.11428206]
[1754871953280,1e-08,182.89,182.88,68.32342113]
[1754871956183,1e-08,182.89,182.88,62.11428206]
[1754871956369,1e-08,182.89,182.88,68.32342113]
[1754871956980,1e-08,182.89,182.88,61.41428206]
[1754871957481,1e-08,182.89,182.88,67.62342113]
[1754871957687,1e-08,182.89,182.88,68.32342113]
[1754871958186,1e-08,182.89,182.88,62.11428206]
[1754871958679,1e-08,182.89,182.88,61.41428206]
[1754871958875,1e-08,182.89,182.88,68.32342113]
[1754871959294,1e-08,182.89,182.88,62.11428206]
[1754871959586,1e-08,182.89,182.88,68.32342113]
[1754871962389,1e-08,182.89,182.88,21.27428206]
[1754871962594,1e-08,182.89,182.88,20.57428206]
[1754871962763,1e-08,182.89,182.84,0.7]
[1754871962968,0.32000001,182.89,182.85,55.90621557]
[1754871963161,1e-08,182.89,182.88,6.20913907]
[1754871963389,1e-08,182.89,182.88,62.11535464]
[1754871963563,1e-08,182.89,182.88,55.90621557]
[1754871963771,1e-08,182.89,182.88,62.81535464]
[1754871963972,1e-08,182.89,182.86,26.0]
[1754871964196,1e-08,182.89,182.87,55.90621557]
[1754871964397,0.32000001,182.89,182.87,40.8]
[1754871964605,1e-08,182.89,182.87,40.8]
[1754871964793,1e-08,182.89,182.87,46.96815717]
[1754871965290,1e-08,182.89,182.87,46.26815717]
[1754871965797,1e-08,182.89,182.87,40.8]
[1754871967482,1e-08,182.89,182.87,46.96828943]
[1754871967872,1e-08,182.89,182.88,15.80621557]
[1754871968062,1e-08,182.89,182.88,19.75545035]
[1754871968262,1e-08,182.89,182.88,15.80621557]
[1754871968506,1e-08,182.89,182.88,40.74]
[1754871968869,3.94923479,182.89,182.88,40.74]
[1754871969068,4.26923479,182.89,182.87,40.76]
[1754871969281,3.94923478,182.88,182.87,0.06]
[1754871969994,4.26923478,182.88,182.87,0.06]
[1754871970214,8.02695228,182.88,182.87,0.06]
[1754871970388,8.02663659,182.88,182.87,0.06]
[1754871970592,3.94923478,182.88,182.87,0.06]
[1754871970924,1e-08,182.89,182.87,0.06]
[1754871971094,3.94923479,182.89,182.87,40.8]
[1754871971291,3.94923478,182.88,182.87,40.8]
[1754871971696,8.34678856,182.88,182.87,40.8]
[1754871972314,3.94923478,182.88,182.87,40.8]
[1754871972822,1e-08,182.89,182.87,41.5]
[1754871973110,1e-08,182.89,182.88,6.16806649]
[1754871974398,1e-08,182.89,182.88,21.27428206]
[1754871974715,1e-08,182.89,182.88,51.22351684]
[1754871975431,1e-08,182.89,182.88,47.27428206]
[1754871975622,1e-08,182.89,182.88,51.22351684]
[1754871975914,1e-08,182.89,182.88,47.27428206]
[1754871976121,1e-08,182.89,182.88,51.22351684]
[1754871977318,1e-08,182.89,182.88,47.27428206]
[1754871977502,1e-08,182.89,182.88,51.22351684]
[1754871979613,1e-08,182.89,182.88,47.27428206]
[1754871979813,1e-08,182.89,182.88,51.22351684]
[1754871980011,1e-08,182.89,182.88,41.10621557]
[1754871980392,1e-08,182.89,182.88,66.62]
[1754871980799,1e-08,182.89,182.88,26.0]
[1754871981000,1e-08,182.89,182.88,66.6]
[1754871981308,4.26923479,182.89,182.87,0.06]
[1754871981507,8.02651622,182.88,182.87,0.06]
[1754871981716,8.34651622,182.88,182.87,0.06]
[1754871982496,14.36833954,182.88,182.87,0.06]
[1754871982821,33.98540679,182.88,182.83,0.06]
[1754871982999,3.94923478,182.84,182.83,0.06]
[1754871983495,4.20923478,182.84,182.81,0.06]
[1754871983697,7.89846956,182.82,182.81,0.06]
[1754871984003,11.975751,182.82,182.81,0.06]
[1754871984193,10.57035331,182.82,182.81,0.06]
[1754871984706,16.04021437,182.82,182.81,0.06]
[1754871985720,16.0311405,182.82,182.81,0.06]
[1754871987425,6.23307187,182.82,182.81,0.06]
[1754871987617,6.7868287,182.82,182.81,0.06]
[1754871988136,12.25668976,182.82,182.81,0.06]
[1754871988431,0.55375683,182.84,182.81,0.76]
[1754871988640,40.6,182.85,182.81,0.06]
[1754871988641,6.23307187,182.82,182.81,0.06]
[1754871990931,6.02306202,182.84,182.81,0.06]
[1754871991117,0.55375683,182.84,182.81,0.06]
[1754871991302,6.23307187,182.83,182.81,0.06]
[1754871991507,6.23307187,182.83,182.81,0.77]
[1754871991922,41.15375683,182.85,182.81,5.53013545]
[1754871992147,6.23307187,182.85,182.82,0.71]
[1754871992325,6.23307187,182.84,182.82,0.71]
[1754871992528,0.55375683,182.86,182.82,0.71]
[1754871993117,0.55375683,182.86,182.83,0.71]
[1754871993317,0.55375683,182.86,182.84,0.71]
[1754871993822,6.02254871,182.86,182.81,0.06]
[1754871994624,6.23307187,182.82,182.81,0.06]
[1754871995014,6.23307187,182.83,182.81,0.06]
[1754871995760,6.23307187,182.84,182.82,0.71]
[1754871995920,0.55375683,182.86,182.82,0.71]
[1754871995921,6.23307187,182.85,182.82,0.71]
[1754871996754,0.55375683,182.86,182.83,0.71]
[1754871996755,6.7868287,182.86,182.83,0.71]
[1754871996928,6.7868287,182.86,182.83,6.17952521]
[1754871997836,6.7868287,182.86,182.84,0.71]
[1754871998632,6.7868287,182.86,182.81,0.06]
[1754871998633,0.55375683,182.86,182.83,5.46955646]
[1754871998858,6.7868287,182.87,182.85,0.71]
[1754871999445,0.55375683,182.87,182.85,0.71]
[1754871999626,6.7868287,182.87,182.82,5.46982846]